Cogmind - Beta 14 @@@ ROGUE MODE // 2024.08.17 @ 20:15:10 Player: Kaeinara Result: Destroyed by G-34 Mercenary with Small Laser Performance ------------- Evolutions (1) 500 Regions Visited (3) 600 Robots Destroyed (22) 110 Value Destroyed (654) 654 Prototype IDs (0) 0 Alien Tech Used (0) 0 Bonus (0) 0 TOTAL SCORE: 1864 Bonus ------- None Cogmind --------- Core Integrity 0/400 Matter 270/300 Energy 80/160 System Corruption 0% Temperature Cool (45) Movement Core (400) Ox7 Location -9/Materials Parts ------- > --- POWER (1) -------- Light Nuclear Core > --- PROPULSION (4) --- (None) > --- UTILITY (2) ------ Small Storage Unit > --- WEAPON (2) ------- EM Pulse Cannon EM Pulse Cannon > --- INVENTORY (8) ---- Improved Heat Sink Structural Scanner Targeting Computer Peak State ------------ > --- POWER ------------ Ion Engine > --- PROPULSION ------- Aluminum Leg Aluminum Leg Aluminum Leg Aluminum Leg > --- UTILITY ---------- Small Storage Unit Structural Scanner > --- WEAPON ----------- Light Assault Rifle Light Assault Rifle > --- INVENTORY -------- Ion Engine Light Nuclear Core Compact Wheel Improved Heat Sink Structural Scanner Targeting Computer Weapon Shielding EM Pulse Gun [Rating: 10] Favorites ----------- Power Ion Engine Engine Ion Engine Power Core Light Nuclear Core Propulsion Aluminum Leg Leg Aluminum Leg Wheel Compact Wheel Utility Small Storage Unit Device Structural Scanner Storage Small Storage Unit Protection Weapon Shielding Weapon Light Assault Rifle Energy Gun EM Pulse Gun Energy Cannon EM Pulse Cannon Ballistic Gun Light Assault Rifle Build | -11 -10 -10 -9 ------- Run | Yrd Mat Min Mat Slots Evolved 2 | . . . 2 Power . | . . . . Propulsion 2 | . . . 2 Utility . | . . . . Weapon . | . . . . Parts Attached 26 | 6 2 2 16 Power 4 | 1 . 1 2 Engine 3 | 1 . 1 1 Core 1 | . . . 1 Reactor . | . . . . Propulsion 12 | 2 . 1 9 Treads . | . . . . Leg 10 | 2 . 1 7 Wheel 2 | . . . 2 Hover . | . . . . Flight . | . . . . Utility 4 | 1 2 . 1 Device 1 | . 1 . . Storage 1 | 1 . . . Processor . | . . . . Hackware . | . . . . Protection 2 | . 1 . 1 Artifact . | . . . . Weapon 6 | 2 . . 4 Energy Gun 1 | . . . 1 Energy Cannon 2 | . . . 2 Ballistic Gun 3 | 2 . . 1 Ballistic Cannon . | . . . . Launcher . | . . . . Special Weapon . | . . . . Impact Weapon . | . . . . Slashing Weapon . | . . . . Piercing Weapon . | . . . . Special Melee Weapon . | . . . . Unidentified Prototypes . | . . . . Parts Lost 20 | . . 2 18 Power 3 | . . 1 2 Propulsion 11 | . . 1 10 Utility 2 | . . . 2 Weapon 4 | . . . 4 Highest Loss Streak 10 | . . 2 10 To Critical Strikes . | . . . . Average Slot Usage (%) 92 | . 99 98 83 Engine 11 | . 14 13 8 Leg 29 | . 28 27 32 Device 11 | . 10 14 9 Storage 12 | . 14 14 11 Ballistic Gun 24 | . 28 28 18 Peak Build Rating 10 | 6 7 7 10 Average Rating 7 | 4 6 6 8 On Entrance 5 | . 6 7 7 Naked Turns . | . . . . Heaviest Build 13 | 12 13 13 13 Greatest Support 40 | 20 20 20 40 Greatest Overweight (x) 3 | 1 . . 3 Average Overweight (x) . | . . . . Largest Inventory Capacity 8 | 8 8 8 8 Average Capacity 7 | 7 8 8 8 Most Carried 8 | 8 8 8 8 Average Carried 7 | 5 7 7 6 Final Capacity 8 | 8 8 8 8 Final Carried 8 | 6 8 7 3 Class Distribution -------------------- 84% | Mutant 15% | Scavenger-Mutant Dominant Class ---------------- Mutant | -10/Materials Mutant | -10/Mines Mutant | -9/Materials Resources | -11 -10 -10 -9 ----------- Run | Yrd Mat Min Mat Matter Collected 553 | 191 151 38 173 Remotely . | . . . . Salvage Created 776 | . 177 90 509 Parts 41 | . 9 2 30 Haulers Intercepted . | . . . . Recyclers Shooed 2 | . 1 . 1 Parts Field Recycled . | . . . . Retrieved Matter . | . . . . Parts Self-Destructed . | . . . . Prevented . | . . . . Kills | -11 -10 -10 -9 ------- Run | Yrd Mat Min Mat Combat Hostiles Destroyed 22 | . 4 2 16 Guns 22 | . 4 2 16 Classes Destroyed 3 | . 1 . 2 Swarmer 6 | . . . 6 Grunt 15 | . 4 2 9 Sentry 1 | . . . 1 Best Kill Streak 5 | . 2 2 5 Combat Bots Only 5 | . 2 2 5 Max Kills in Single Turn 1 | . 1 1 1 Gunslinging . | . . . . Exploded . | . . . . Melee . | . . . . Uniques/NPCs Destroyed . | . . . . Combat | -11 -10 -10 -9 -------- Run | Yrd Mat Min Mat Hostile Shots Fired 263 | . 34 12 217 Missed 66 | . 9 1 56 Damage Taken 2241 | . 312 131 1798 Core 553 | . 119 33 401 Absorbed by Shields . | . . . . Core Remaining (%) 69 | 100 . 39 . Volleys Fired 114 | . 34 8 72 Largest 2 | . 2 2 2 Hottest 126 | . 40 40 126 Shots Fired 220 | . 68 16 136 Gun 218 | . 68 16 134 Cannon 2 | . . . 2 Launcher . | . . . . Special . | . . . . Kinetic 212 | . 68 16 128 Thermal . | . . . . Explosive . | . . . . Electromagnetic 8 | . . . 8 Robot Hit Streak 15 | . 8 8 15 Robot Miss Streak 4 | . 4 3 4 Penetration Max . | . . . . Secondary Targets 2 | . . . 2 Max Gunslinging Chain 1 | . . . 1 Shots Hit Robots 138 | . 39 14 85 Core Hits 54 | . 13 6 35 Critical Kills 1 | . 1 . . Critical Parts Destroyed 1 | . . . 1 Critical Strikes 2 | . 1 . 1 Destroy 2 | . 1 . 1 Melee Attacks . | . . . . Impact . | . . . . Slashing . | . . . . Piercing . | . . . . Sneak Attacks . | . . . . Combat Hostiles . | . . . . Follow-up Attacks . | . . . . Damage Inflicted 1182 | . 317 121 744 Guns 1127 | . 317 121 689 Cannons 55 | . . . 55 Explosions . | . . . . Melee . | . . . . Ramming . | . . . . Kinetic 1084 | . 317 121 646 Thermal . | . . . . Explosive . | . . . . Electromagnetic 98 | . . . 98 Impact . | . . . . Slashing . | . . . . Piercing . | . . . . Highest Corruption . | . . . . Average Corruption . | . . . . Corruption Purged . | . . . . Corruption Blocked . | . . . . Overload Shots . | . . . . Overflow Damage . | . . . . Projectiles . | . . . . Explosions . | . . . . Melee . | . . . . Knockbacks . | . . . . Impact . | . . . . Kinetic . | . . . . Secondary . | . . . . Self-Inflicted Damage . | . . . . Shots . | . . . . Rammed . | . . . . Targets Rammed . | . . . . Kicked . | . . . . Crushed . | . . . . Highest Temperature 75 | . 24 9 75 Average Temperature 8 | . 8 2 9 Received Heat Transfer 1032 | . 168 75 789 Siege Activations . | . . . . Robots Corrupted . | . . . . Combat Hostiles . | . . . . Parts Fried . | . . . . Impact Corruptions . | . . . . Robots Melted . | . . . . Combat Hostiles . | . . . . Parts Melted . | . . . . Heat Transferred . | . . . . Parts Sabotaged . | . . . . Parts Stolen . | . . . . Parts Stripped . | . . . . Power Chain Reactions . | . . . . Alert | -11 -10 -10 -9 ------- Run | Yrd Mat Min Mat Peak Influence 379 | . 164 63 379 Initial 63 | . . 63 19 Average 90 | . 86 56 130 Maximum Alert Level 1 | . . . 1 Low Security (%) 85 | 100 100 100 64 Level 1 14 | . . . 35 Level 2 . | . . . . Level 3 . | . . . . Level 4 . | . . . . Level 5 . | . . . . High Security . | . . . . Max Security . | . . . . Squads Dispatched 2 | . 1 . 1 Investigation . | . . . . Extermination . | . . . . Reinforcement 2 | . 1 . 1 Assault . | . . . . Garrison . | . . . . Intercept . | . . . . Searches Triggered . | . . . . Construction Impeded . | . . . . Haulers Reinforced . | . . . . Active Scanning Responses . | . . . . Cargo Convoy Interrupts . | . . . . Stealth | -11 -10 -10 -9 --------- Run | Yrd Mat Min Mat Distress Signals 6 | . 2 . 4 Communications Jammed . | . . . . Distress Signals . | . . . . Times Spotted 46 | . 13 2 31 Peak Tracking Total 8 | . 4 2 8 Tactical Retreats 7 | . . . 7 Traps | -11 -10 -10 -9 ------- Run | Yrd Mat Min Mat Traps Triggered 1 | . 1 . . Indirectly . | . . . . Trap Hack Attempts . | . . . . Triggered . | . . . . Disarmed . | . . . . Reprogrammed . | . . . . Reused . | . . . . Traps Extracted . | . . . . Installed . | . . . . Triggered . | . . . . Machines | -11 -10 -10 -9 ---------- Run | Yrd Mat Min Mat Machines Disabled . | . . . . Max in Single Turn . | . . . . Machines Repaired . | . . . . Machines Dismantled . | . . . . Machines Sabotaged . | . . . . Overloaded Fab Kills . | . . . . Hacking | -11 -10 -10 -9 --------- Run | Yrd Mat Min Mat Machines Accessed 3 | . 1 . 2 Terminals 3 | . 1 . 2 Fabricators . | . . . . Repair Stations . | . . . . Recycling Units . | . . . . Scanalyzers . | . . . . Garrison Access . | . . . . Total Hacks 8 | . 1 . 7 Successful 7 | . 1 . 6 Failed . | . . . . Catastrophic . | . . . . Database Lockouts 1 | . . . 1 Manual . | . . . . Terminals 8 | . 1 . 7 Fabricators . | . . . . Repair Stations . | . . . . Recycling Units . | . . . . Scanalyzers . | . . . . Garrison Access . | . . . . Terminal Hacks 7 | . 1 . 6 Record 4 | . . . 4 Emergency Access Points 1 | . 1 . . Alert Level 1 | . . . 1 Unreport Threat 1 | . . . 1 Fabricator Hacks . | . . . . Repair Station Hacks . | . . . . Recycling Unit Hacks . | . . . . Scanalyzer . | . . . . Garrison Access Hacks . | . . . . Unauthorized Hacks . | . . . . Terminals . | . . . . Fabricators . | . . . . Repair Stations . | . . . . Recycling Units . | . . . . Scanalyzers . | . . . . Garrison Access . | . . . . Data Cores Recovered . | . . . . Used . | . . . . Hacking Detections 1 | . . . 1 Full Trace Events . | . . . . Feedback Events . | . . . . Feedback Blocked . | . . . . Robot Schematics Acquired . | . . . . Robots Built . | . . . . Authchips . | . . . . Time . | . . . . Total Robot Build Rating . | . . . . Part Schematics Acquired . | . . . . Parts Built . | . . . . Authchips . | . . . . Time . | . . . . Total Part Build Rating . | . . . . Parts Repaired . | . . . . Time . | . . . . Parts Recycled . | . . . . Recycled Matter . | . . . . Retrieved Matter . | . . . . Retrieved Components . | . . . . Parts Scanalyzed . | . . . . Part Schematics Acquired . | . . . . Parts Damaged . | . . . . Bothacking | -11 -10 -10 -9 ------------ Run | Yrd Mat Min Mat Used RIF Installer . | . . . . Robots Hacked . | . . . . Non-combat . | . . . . Combat . | . . . . Robot Hacks Applied . | . . . . Relay Couplers Released . | . . . . Fabnet Peak Effective % . | . . . . Robots Rewired . | . . . . Allies Hacked . | . . . . Hacks Repelled . | . . . . Allies | -11 -10 -10 -9 -------- Run | Yrd Mat Min Mat Total Allies . | . . . . Largest Group . | . . . . Highest-Rated Group . | . . . . Highest-Rated Ally . | . . . . Total Orders . | . . . . Ally Attacks . | . . . . Total Damage . | . . . . Kills . | . . . . Allies Corrupted . | . . . . Allies Melted . | . . . . Intel | -11 -10 -10 -9 ------- Run | Yrd Mat Min Mat Robot Analysis Total . | . . . . Derelict Logs Recovered 1 | . . 1 . Drone Launches . | . . . . Drone Recoveries . | . . . . Exploration | -11 -10 -10 -9 ------------- Run | Yrd Mat Min Mat Turns Passed 1416 | 66 314 467 569 Spaces Moved 835 | 43 171 366 255 Core 47 | 7 . . 40 Treads . | . . . . Legs 788 | 36 171 366 215 Wheels . | . . . . Hover . | . . . . Flight . | . . . . Fastest Speed 50 | 50 120 120 100 Average Speed 119 | 115 120 120 120 Slowest Speed 200 | 120 120 120 200 Overloaded Moves . | . . . . Propulsion Burnouts . | . . . . Robots Hopped . | . . . . Cave-ins Triggered . | . . . . Exploration Rate (%) 33 | 4 36 77 18 Regions Visited 3 Branch Regions 1 Pre-discovered Areas 1 | . . 1 . Known Exits Taken . | . . . . Unknown Exits Taken 3 | 1 1 1 . Scrap Searched 1 | . . 1 . Spaces Dug . | . . . . Terrain Destroyed . | . . . . Melee . | . . . . Projectile . | . . . . AOE . | . . . . Terrain Rammed . | . . . . Walls Destroyed . | . . . . Machines Disabled . | . . . . Actions | -11 -10 -10 -9 --------- Run | Yrd Mat Min Mat Total 1073 | 59 225 382 407 Wait 66 | . 14 2 50 Move 832 | 42 170 365 255 Hop . | . . . . Pick Up 30 | 11 4 3 12 Fast Attach 2 | 1 . . 1 Attach 22 | 5 1 2 14 Detach . | . . . . Swap 2 | . 1 . 1 Drop 5 | . 1 2 2 Fire 114 | . 34 8 72 Melee . | . . . . Ram . | . . . . Kick . | . . . . Crush . | . . . . Escape Stasis . | . . . . Rewire . | . . . . Trap . | . . . . Miscellaneous . | . . . . Route ------- -11/Scrapyard -10/Materials -10/Mines -9/Materials (discovered 1 exit: [*Min]) History --------- Turn | Location | Event 10 | -11/Scrapyard | Discovered new exit (range 16) 67 | -11/Scrapyard | Entered Materials 285 | -10/Materials | Discovered new exit (range 16) 313 | -10/Materials | Build established: Mutant 381 | -10/Materials | Entered Mines 804 | -10/Mines | Discovered new exit (range 5) 806 | -10/Mines | Core integrity fell below 50% 848 | -10/Mines | Entered Materials 848 | -9/Materials | Evolved 2 slots: Propulsion x2 1075 | -9/Materials | Lost 3 parts (1p2n) 1109 | -9/Materials | Discovered new exit (range 14) 1188 | -9/Materials | Lost 3 parts (2n1w) 1251 | -9/Materials | Central database locked down 1332 | -9/Materials | Core integrity fell below 50% 1367 | -9/Materials | Core integrity fell below 20% 1399 | -9/Materials | Lost 10 parts (1p4n2u3w) 1417 | -9/Materials | Destroyed by G-34 Mercenary with Small Laser Last Messages --------------- 01318_ Aluminum Leg destroyed. 01325_ U-05 Engineer destroyed. 01327_ Structural Scanner destroyed. 01330_ Lgt. Assault Rifle destroyed. 01332_ G-34 Mercenary destroyed. 01332_ Lgt. Assault Rifle destroyed. 01348_ EM Pulse Gun destroyed. 01349_ Aluminum Leg destroyed. 01349_ G-47 Trooper misfires. 01354_ R-06 Scavenger collects Wheel. 01354_ R-06 Scavenger collects Aluminum Leg. 01356_ R-06 Scavenger collects Wheel. 01357_ Aluminum Leg destroyed. 01359_ R-06 Scavenger collects Terrain Scanner. 01361_ R-06 Scavenger collects Welding Torch. 01368_ Med. Armor Plating destroyed. 01370_ Acquired 29 matter. 01371_ K-01 Serf collects debris. 01403_ Acquired EM Pulse Cannon. 01416_ G-34 Mercenary misfires. Map ----- +----------------------------------------------------+ | ???????????????????????????????????? """ Y" # % | | ?????????????????????? ????????? "" ##+ | | ????????????????????? ????????? % | | ????????????????????? ????????? | | ?????????????????????# #??????????##"T"## | | ?????????????????????# #?????????? #"?"######### | | ?????????????????????# #???????????????##### | | ?????????????????????# #??????????????????## | | ?????????????????????# #??????????????????## | | ?????????????????????# #??????????????????## | | ?????????????????????# #?????????? ######### | | ?????????????????????# #?????????? ############# | | ?????????????????????+ ############# ####### | | ?????????????????????# # ##### | | ?????????????????????# # """ + % % | | ?????????????????????# # """ ##### %% % | | ?????????????????????# # """ #??## %% ####### | | ?????????????????????+ + ####### ######### | | ?????????????????????# gg############### ####????? | | ?????????????????????# ## ?????? | | ?????????????????????# g # ?????? | | ?????????????????????# # ?????? | | ?????????????????????# # ?????? | | ?????????????????????### ## # ?????? | | ???????????????????????# ### # ?????? | | ???????????????????????# @[[!!### + ?????? | | ???????????????????????#]][[!!### ##?????? | | ???????????????????????########## # ?????? | | ???????????????????????????????## ## # ?????? | | ??????????????????????????????? # ^# ?????? | | ???????????????????????????????" # # ?????? | | ??????????????????????????????!! ? # + ?????? | | ??????????????????????????????""